fUST/lending_fUST_20240528
["ID","MTS","AMOUNT","RATE_DAILY","PERIOD"]
[328100231,1716856246493,-500.0,0.00023819,2]
[328100232,1716856246502,-500.0,0.00023819,2]
[328100233,1716856246512,-500.0,0.00023819,2]
[328100234,1716856246521,-500.0,0.00023819,2]
[328100235,1716856246530,-500.0,0.00023819,2]
[328100236,1716856246540,-500.0,0.00023819,2]
[328100237,1716856246550,-500.0,0.00023819,2]
[328100238,1716856246560,-500.0,0.00023819,2]
[328100239,1716856246569,-500.0,0.00023819,2]
[328100240,1716856246578,-500.0,0.00023819,2]
[328100241,1716856246587,-500.0,0.00023819,2]
[328100242,1716856246597,-500.0,0.00023819,2]
[328100243,1716856246606,-500.0,0.00023819,2]
[328100244,1716856246615,-500.0,0.00023819,2]
[328100245,1716856246625,-350.0,0.00023819,2]
[328100246,1716856246634,-500.0,0.00023819,2]
[328100247,1716856246643,-500.0,0.00023819,2]
[328100248,1716856246653,-500.0,0.00023819,2]
[328100249,1716856246846,-500.0,0.00023819,2]
[328100250,1716856246858,-480.02970192,0.00023819,2]
[328100251,1716856246867,-151.0,0.0002382,2]
[328100252,1716856246876,-151.0,0.00023822,2]
[328100253,1716856246885,-151.0,0.00023822,2]
[328100254,1716856246894,-151.0,0.00023822,2]
[328100255,1716856246904,-153.426562,0.00023826,2]
[328100256,1716856246913,-244.04021163,0.00023828,2]
[328100257,1716856246922,-3000.0,0.00023829,2]
[328100258,1716856246931,-3000.0,0.00023829,2]
[328100259,1716856246940,-831.4571557,0.00023829,2]
[328100260,1716856246949,-151.0,0.00023829,2]
[328100261,1716856246958,-1655.0477616,0.0002383,7]
[328100262,1716856246967,-70828.22096842,0.0002383,2]
[328100266,1716857141136,-662.9075645,0.00019999,2]
[328100267,1716857240098,-635.4956138,0.00019999,2]
[328100297,1716857434628,-150.0,0.000189,2]
[328100299,1716857434638,-125.16174657,0.00019999,2]
[328100515,1716857444119,-852.40472598,0.00019999,2]
[328100516,1716857444129,-650.0,0.0002,2]
[328100517,1716857444139,-527.4968972,0.00020117,2]
[328100518,1716857444148,-156.8699674,0.00020913,2]
[328100519,1716857444157,-172.55026604,0.00020913,2]
[328100520,1716857444167,-635.4956138,0.00020913,7]
[328100521,1716857444176,-166.666666,0.00021918,2]
[328100522,1716857444186,-233.0,0.00022227,3]
[328100523,1716857444195,-233.0,0.00022871,3]
[328100524,1716857444204,-4697.73031858,0.00023,2]
[328100525,1716857444214,-233.0,0.00023516,5]
[328100526,1716857444224,-545.1216239,0.00023729,2]
[328100527,1716857444233,-282.0,0.000238,2]
[328100528,1716857444243,-190.14627615,0.00023828,2]
[328100529,1716857444252,-2621.36621925,0.00023828,2]
[328100530,1716857444262,-471.9305162,0.00023828,2]
[328100533,1716857444590,-1307.27752978,0.00023828,2]
[328100534,1716857444664,-146.55859232,0.00023828,2]
[328100535,1716857444676,-133.83670018,0.00023828,2]
[328100556,1716858084310,1517.31310056,9.999e-05,2]
[328100558,1716858348467,-992.68370484,0.00020456,2]
[328100559,1716858442117,-271.74387896,0.00020456,2]
[328100560,1716858442141,-223.453963,0.00020457,2]
[328100561,1716858442163,-214.3158406,0.00020912,2]
[328100633,1716858634403,-150.0,0.000189,2]
[328100634,1716858634412,-1194.1489922,0.00020812,2]
[328100725,1716859248912,658.76677116,9.999e-05,2]
[328100726,1716859412725,150.0,0.000189,2]
[328100727,1716859557158,-641.9477233,0.00019783,2]
[328100728,1716859653098,-16.81904786,0.00019783,2]
[328100729,1716859653119,-164.28156595,0.00019784,2]
[328100730,1716859653139,-398.91612003,0.00019884,2]
[328100755,1716859838237,-658.76677116,0.00019559,2]
[328100756,1716859838247,-173.994812,0.0001956,2]
[328100757,1716859838257,-597.29442767,0.00019884,2]
[328100758,1716859838269,-156.8699674,0.0002,2]
[328100759,1716859838279,-204.89310413,0.00020699,2]
[328100760,1716859838289,-192.1249037,0.00020812,7]
[328100761,1716859838299,-553.15024045,0.00020812,10]
[328100762,1716859838311,-3734.78619606,0.00020812,10]
[328100763,1716859838320,-2088.95988881,0.00020812,2]
[328100764,1716859838330,-3447.07399721,0.00020912,2]
[328100765,1716859838341,-237.32273365,0.00020912,7]
[328100766,1716859838351,-190.14627615,0.00020912,2]
[328100767,1716859838360,-155.09619953,0.00020912,2]
[328100768,1716859838370,-155.1705892,0.00020912,2]
[328100769,1716859838380,-155.17411759,0.00020912,2]
[328100770,1716859838390,-154.97996675,0.00020912,2]
[328100771,1716859838611,-154.95577617,0.00020912,2]
[328100772,1716859838621,-155.02458956,0.00020912,2]
[328100773,1716859838631,-1344.1489922,0.00020913,2]
[328100774,1716859838640,-181.49933516,0.000219,2]
[328100795,1716859841859,-154.98855298,0.0002,2]
[328100797,1716859841869,-110.26433434,0.000219,2]
[328100799,1716859841879,-94.24811272,0.000219,2]
[328100816,1716859843896,-197.51555678,0.000219,2]
[328100817,1716859843906,-157.3614107,0.000219,2]
[328100818,1716859843915,-153.0,0.00021978,2]
[328100819,1716859843925,-153.0,0.00021978,2]
[328100820,1716859843934,-153.0,0.00022156,2]
[328100821,1716859843943,-291.7636695,0.00022156,2]
[328100822,1716859843953,-153.0,0.00022156,2]
[328100823,1716859843962,-153.0,0.00022156,2]
[328100824,1716859843971,-153.0,0.00022156,2]
[328100825,1716859843980,-291.7636695,0.00022156,2]
[328100826,1716859843990,-291.7636695,0.00022256,2]
[328100827,1716859844000,-291.7636695,0.00022256,2]
[328100828,1716859844010,-177.1,0.0002229,3]
[328100829,1716859844021,-204.7368025,0.00022737,2]
[328100830,1716859844031,-204.7368025,0.00022737,2]
[328100831,1716859844041,-204.7368025,0.00022737,2]
[328100832,1716859844051,-153.0,0.0002274,2]
[328100833,1716859844062,-153.0,0.0002274,2]
[328100834,1716859844071,-153.0,0.0002274,2]
[328100835,1716859844081,-177.1,0.00022929,3]
[328100836,1716859844090,-498.31307185,0.00023,2]
[328100837,1716859844099,-943.68699274,0.00023,2]
[328100852,1716859847962,-666.38394615,0.0002,2]
[328100853,1716859847972,-155.00160615,0.0002,2]
[328100855,1716859847981,-388.60272507,0.00023,2]
[328100857,1716859847994,-2957.66779019,0.00023,2]
[328100858,1716859848003,-1006.25,0.000235,2]
[328100859,1716859848012,-177.1,0.00023567,5]
[328100860,1716859848021,-282.0,0.000238,2]
[328100861,1716859848030,-762.41609259,0.00023828,2]
[328100862,1716859848039,-500.0,0.00023829,2]
[328100863,1716859848048,-205.72701511,0.00023829,2]
[328100864,1716859848057,-500.0,0.00023829,2]
[328100865,1716859848066,-500.0,0.00023829,2]
[328100866,1716859848076,-500.0,0.00023829,2]
[328100867,1716859848085,-500.0,0.00023829,2]
[328100868,1716859848095,-500.0,0.00023829,2]
[328100869,1716859848104,-500.0,0.00023829,2]
[328100870,1716859848113,-500.0,0.00023829,2]
[328100871,1716859848123,-169.64293776,0.00023829,2]
[328100872,1716859848134,-330.35706224,0.00023829,2]
[328100873,1716859848143,-169.64293776,0.00023829,2]
[328100874,1716859898517,3745.22369449,0.0002,10]
[328100889,1716860525122,658.76677116,9.999e-05,2]
[328100890,1716860738149,-658.76677116,0.00020811,2]
[328100891,1716860738169,-2.04480922,0.00020812,2]
[328100893,1716860841366,-635.4956138,0.0002081,2]
[328100929,1716861034625,-258.95434979,0.00020811,2]
[328100930,1716861034638,-399.81242137,0.00020811,2]
[328100931,1716861034646,-3046.53757863,0.00020812,2]
[328100959,1716861040150,-6741.2,0.00020812,2]
[328100961,1716861040163,-22627.4238472,0.00020812,2]
[328100963,1716861040172,-376.69332081,0.00020999,2]
[328100965,1716861040182,-232.82539376,0.00020999,2]
[328100967,1716861040193,-500.0,0.00020999,2]
[328100969,1716861040203,-500.0,0.00020999,2]
[328100971,1716861040213,-500.0,0.00020999,2]
[328100973,1716861040224,-500.0,0.00020999,2]
[328100975,1716861040234,-500.0,0.00020999,2]
[328100977,1716861040244,-500.0,0.00020999,2]
[328100979,1716861040255,-500.0,0.00020999,2]
[328100981,1716861040264,-500.0,0.00020999,2]
[328100983,1716861040275,-500.0,0.00020999,2]
[328100985,1716861040286,-500.0,0.00020999,2]
[328100987,1716861040296,-500.0,0.00020999,2]
[328100989,1716861040306,-500.0,0.00020999,2]
[328100991,1716861040315,-500.0,0.00020999,2]
[328100993,1716861040325,-500.0,0.00020999,2]
[328100995,1716861040335,-500.0,0.00020999,2]
[328100997,1716861040350,-412.86367559,0.00020999,2]
[328100999,1716861040359,-500.0,0.00020999,2]
[328101001,1716861040369,-500.0,0.00020999,2]
[328101003,1716861040381,-500.0,0.00020999,2]
[328101005,1716861040391,-500.0,0.00020999,2]
[328101007,1716861040401,-500.0,0.00020999,2]
[328101009,1716861040410,-500.0,0.00020999,2]
[328101010,1716861040420,-500.0,0.00020999,2]
[328101012,1716861040430,-500.0,0.00020999,2]
[328101014,1716861040439,-500.0,0.00020999,2]
[328101016,1716861040449,-500.0,0.00020999,2]
[328101019,1716861040458,-500.0,0.00020999,2]
[328101021,1716861040468,-500.0,0.00020999,2]
[328101024,1716861040477,-500.0,0.00020999,2]
[328101028,1716861040487,-500.0,0.00020999,2]
[328101031,1716861040496,-500.0,0.00020999,2]
[328101034,1716861040505,-500.0,0.00020999,2]
[328101037,1716861040515,-500.0,0.00020999,2]
[328101039,1716861040524,-500.0,0.00020999,2]
[328101041,1716861040534,-500.0,0.00020999,2]
[328101043,1716861040543,-500.0,0.00020999,2]
[328101045,1716861040553,-500.0,0.00020999,2]
[328101047,1716861040562,-500.0,0.00020999,2]
[328101049,1716861040572,-500.0,0.00020999,2]
[328101051,1716861040581,-500.0,0.00020999,2]
[328101053,1716861040591,-500.0,0.00020999,2]
[328101054,1716861040605,-500.0,0.00020999,2]
[328101056,1716861040614,-650.0,0.00020999,2]
[328101058,1716861040623,-500.0,0.00020999,2]
[328101060,1716861040632,-92496.19376276,0.00021,2]
[328101179,1716861045221,-1616.82736085,0.00021,2]
[328101202,1716861045521,-7409.50619911,0.00021,2]
[328101676,1716861050100,-658.76677116,0.00020913,2]
[328101678,1716861050110,-28.23322884,0.00021,2]
[328101775,1716861719318,658.76677116,9.999e-05,2]
[328101779,1716861956168,-658.76677116,0.00019794,2]
[328101780,1716861956189,-300.72972123,0.00019795,2]
[328101781,1716862049289,-658.76677116,0.00019595,2]
[328101782,1716862049311,-50.7469114,0.00019596,2]
[328101838,1716862234582,-443.5,0.00019398,2]
[328101852,1716862239097,-484.26584546,0.00019398,2]
[328101969,1716862244431,-690.14607,0.00019398,2]
[328101974,1716862244481,-499.19197381,0.00019398,2]
[328101976,1716862244491,-658.76677116,0.00019399,2]
[328101978,1716862244500,-154.93802479,0.000194,2]
[328101980,1716862244509,-3669.53240422,0.00019795,2]
[328101982,1716862244521,-514.4836365,0.00019795,2]
[328102124,1716862284682,2721.0,0.00019,2]
[328102125,1716862344311,155.26869022,0.00019,2]
[328102126,1716862344837,4997.4309963,9.999e-05,2]
[328102127,1716862344860,4577.08988423,9.999e-05,2]
[328102128,1716862356026,3382.90850563,0.00019,2]
[328102129,1716862356481,2094.64043614,0.00019,2]
[328102130,1716862875477,658.76677116,9.999e-05,2]
[328102131,1716863148147,-658.76677116,0.00019239,2]
[328102132,1716863148169,-14.93582905,0.0001924,2]
[328102133,1716863252113,-414.550405,0.00019239,2]
[328102134,1716863252137,-165.46632884,0.0001924,2]
[328102180,1716863433169,-622.23877594,0.0001924,2]
[328102388,1716863441003,-5681.15258987,0.0001924,2]
[328102417,1716863442663,-18596.60863419,0.0001924,2]
[328102419,1716863442673,-564.72760294,0.000193,2]
[328102421,1716863442682,-157.522469,0.000194,2]
[328102423,1716863442692,-225.795007,0.0001944,2]
[328102425,1716863442701,-239.56034275,0.00020786,2]
[328102427,1716863442710,-2132.04491008,0.00020786,2]
[328102429,1716863442719,-190.63783121,0.00020786,2]
[328102431,1716863442729,-276.05984486,0.00020786,2]
[328102433,1716863442739,-10493.310471,0.00020786,2]
[328102435,1716863442748,-2800.1787569,0.00020787,2]
[328102437,1716863442758,-35782.8663385,0.00020788,2]
[328102439,1716863442766,-155.09842705,0.00020912,2]
[328102441,1716863442772,-248.55243125,0.00020912,2]
[328102443,1716863442780,-176.11082402,0.00020912,2]
[328102445,1716863442789,-850.56115627,0.00020913,2]
[328102447,1716863442798,-65.32701342,0.00021,2]
[328102449,1716863442805,-151.0,0.00021564,3]
[328102451,1716863442813,-204.7368025,0.00021918,2]
[328102453,1716863442820,-204.7368025,0.00021918,2]
[328102455,1716863442828,-204.7368025,0.00021918,2]
[328102457,1716863442838,-204.4575825,0.00021918,2]
[328102459,1716863442847,-200.0,0.00022,2]
[328102461,1716863442856,-151.0,0.00022269,3]
[328102463,1716863442864,-161.43999463,0.00022499,2]
[328102465,1716863442872,-500.0,0.00022499,2]
[328102467,1716863442880,-500.0,0.00022499,2]
[328102469,1716863442890,-500.0,0.00022499,2]
[328102471,1716863442897,-500.0,0.00022499,2]
[328102473,1716863442907,-500.0,0.00022499,2]
[328102475,1716863442916,-500.0,0.00022499,2]
[328102477,1716863442925,-500.0,0.00022499,2]
[328102479,1716863442935,-500.0,0.00022499,2]
[328102481,1716863442944,-500.0,0.00022499,2]
[328102483,1716863442954,-468.85910267,0.00022499,2]
[328102485,1716863442963,-500.0,0.00022499,2]
[328102487,1716863442974,-500.0,0.00022499,2]
[328102490,1716863442987,-500.0,0.00022499,2]
[328102492,1716863442997,-500.0,0.00022499,2]
[328102494,1716863443006,-5274.61896772,0.000225,2]
[328102496,1716863443015,-368.921306,0.000225,2]
[328102498,1716863443026,-368.921306,0.000225,2]
[328102499,1716863443035,-151.0,0.000225,2]
[328102501,1716863443044,-151.0,0.000225,2]
[328102503,1716863443055,-151.0,0.000225,2]
[328102505,1716863443064,-160.585947,0.000225,2]
[328102507,1716863443074,-160.585947,0.000225,2]
[328102509,1716863443085,-1187.600206,0.000225,2]
[328102511,1716863443094,-1187.600206,0.000225,2]
[328102513,1716863443103,-332.898765,0.000225,2]
[328102515,1716863443112,-332.898765,0.000225,2]
[328102517,1716863443121,-2179.171276,0.000225,2]
[328102519,1716863443131,-2179.171276,0.000225,2]
[328102521,1716863443139,-249.040639,0.000225,2]
[328102523,1716863443150,-151.0,0.000225,2]
[328102525,1716863443159,-151.0,0.000225,2]
[328102527,1716863443168,-151.0,0.0002274,2]
[328102530,1716863443178,-155.248111,0.0002274,2]
[328102532,1716863443188,-160.585947,0.0002274,2]
[328102534,1716863443198,-160.585947,0.0002274,2]
[328102536,1716863443208,-1187.600206,0.0002274,2]
[328102538,1716863443219,-1187.600206,0.0002274,2]
[328102540,1716863443229,-332.898765,0.0002274,2]
[328102542,1716863443239,-332.898765,0.0002274,2]
[328102544,1716863443248,-2179.171276,0.0002274,2]
[328102546,1716863443258,-2179.171276,0.0002274,2]
[328102548,1716863443268,-291.259684,0.0002274,2]
[328102550,1716863443277,-291.259684,0.0002274,2]
[328102552,1716863443287,-151.0,0.0002274,2]
[328102554,1716863443296,-151.0,0.0002274,2]
[328102556,1716863443305,-151.0,0.0002274,2]
[328102558,1716863443315,-365.333989,0.0002274,2]
[328102560,1716863443324,-365.333989,0.0002274,2]
[328102562,1716863443335,-151.0,0.0002274,2]
[328102564,1716863443344,-179.974494,0.0002274,2]
[328102566,1716863443353,-241.551959,0.0002274,2]
[328102568,1716863443363,-241.551959,0.0002274,2]
[328102570,1716863443373,-303.2,0.00022914,3]
[328102572,1716863443383,-241.551959,0.00022916,2]
[328102574,1716863443393,-241.551959,0.00022916,2]
[328102576,1716863443404,-151.0,0.00022919,2]
[328102578,1716863443414,-547.321324,0.00022919,2]
[328102580,1716863443424,-547.321324,0.00022919,2]
[328102582,1716863443435,-151.0,0.00022919,2]
[328102584,1716863443444,-151.0,0.00022919,2]
[328102586,1716863443455,-151.0,0.00022919,2]
[328102588,1716863443465,-151.0,0.00022919,2]
[328102590,1716863443476,-365.333989,0.00022919,2]
[328102592,1716863443487,-365.333989,0.00022919,2]
[328102594,1716863443497,-151.0,0.00022919,2]
[328102596,1716863443508,-564.72760291,0.00022957,2]
[328102598,1716863443518,-151.0,0.00022973,3]
[328102600,1716863443527,-368.921306,0.00022976,2]
[328102602,1716863443536,-368.921306,0.00022976,2]
[328102604,1716863443546,-151.0,0.00022976,2]
[328102606,1716863443555,-160.585947,0.00022976,2]
[328102608,1716863443565,-160.585947,0.00022976,2]
[328102610,1716863443575,-1187.600206,0.00022976,2]
[328102612,1716863443592,-1187.600206,0.00022976,2]
[328102614,1716863443602,-332.898765,0.00022976,2]
[328102616,1716863443611,-332.898765,0.00022976,2]
[328102618,1716863443621,-2179.171276,0.00022976,2]
[328102620,1716863443631,-2179.171276,0.00022976,2]
[328102622,1716863443641,-291.259684,0.00022976,2]
[328102624,1716863443650,-291.259684,0.00022976,2]
[328102626,1716863443659,-151.0,0.00022976,2]
[328102628,1716863443668,-151.0,0.00022976,2]
[328102630,1716863443678,-151.0,0.00022976,2]
[328102632,1716863443688,-365.333989,0.00022976,2]
[328102634,1716863443697,-365.333989,0.00022976,2]
[328102636,1716863443707,-155.32579,0.00022976,2]
[328102638,1716863443716,-241.551959,0.00022976,2]
[328102640,1716863443725,-241.551959,0.00022976,2]
[328102642,1716863443735,-303.2,0.00023496,5]
[328102644,1716863443744,-1000.0,0.000235,2]
[328102646,1716863443754,-151.850045,0.000235,2]
[328102648,1716863443763,-282.0,0.000238,2]
[328102650,1716863443773,-151.0,0.000238,2]
[328102652,1716863443783,-153.218855,0.000238,2]
[328102654,1716863443792,-547.321324,0.000238,2]
[328102656,1716863443802,-547.321324,0.000238,2]
[328102659,1716863443812,-151.0,0.000238,2]
[328102661,1716863443821,-265.257145,0.000238,2]
[328102663,1716863443831,-844.95896774,0.00023826,2]
[328102665,1716863443844,-160.585947,0.00023826,2]
[328102667,1716863443853,-160.585947,0.00023826,2]
[328102668,1716863443863,-1187.600206,0.00023826,2]
[328102671,1716863443872,-1187.600206,0.00023826,2]
[328102673,1716863443881,-332.898765,0.00023826,2]
[328102675,1716863443891,-332.898765,0.00023826,2]
[328102676,1716863443901,-2179.171276,0.00023826,2]
[328102678,1716863443910,-2179.171276,0.00023826,2]
[328102680,1716863443920,-291.259684,0.00023826,2]
[328102683,1716863443930,-291.259684,0.00023826,2]
[328102684,1716863443941,-155.628114,0.00023826,2]
[328102687,1716863443951,-151.0,0.00023826,2]
[328102688,1716863443960,-151.0,0.00023826,2]
[328102690,1716863443971,-365.333989,0.00023826,2]
[328102693,1716863443984,-365.333989,0.00023826,2]
[328102695,1716863443994,-241.551959,0.00023826,2]
[328102697,1716863444004,-241.551959,0.00023826,2]
[328102698,1716863444013,-157.0479131,0.00023828,2]
[328102701,1716863444023,-1033.26474409,0.0002383,7]
[328102703,1716863444032,-1518.99000561,0.0002383,2]
[328102764,1716863444587,-1533.05194396,0.0002383,2]
[328103023,1716863447363,-54191.98656405,0.0002383,2]
[328103025,1716863447372,-151.0,0.0002383,2]
[328103027,1716863447381,-368.921306,0.0002383,2]
[328103029,1716863447391,-368.921306,0.0002383,2]
[328103031,1716863447400,-368.921306,0.0002383,2]
[328103033,1716863447409,-368.921306,0.0002383,2]
[328103035,1716863447419,-151.0,0.0002383,2]
[328103037,1716863447428,-151.0,0.0002383,2]
[328103039,1716863447437,-547.321324,0.0002383,2]
[328103041,1716863447446,-547.321324,0.0002383,2]
[328103043,1716863447455,-547.321324,0.0002383,2]
[328103044,1716863447464,-547.321324,0.0002383,2]
[328103046,1716863447473,-547.321324,0.0002383,2]
[328103048,1716863447482,-547.321324,0.0002383,2]
[328103050,1716863447491,-151.0,0.0002383,2]
[328103052,1716863447500,-151.0,0.0002383,2]
[328103054,1716863447509,-151.0,0.0002383,2]
[328103056,1716863447519,-160.585947,0.0002383,2]
[328103058,1716863447528,-160.585947,0.0002383,2]
[328103060,1716863447536,-160.585947,0.0002383,2]
[328103062,1716863447545,-160.585947,0.0002383,2]
[328103064,1716863447555,-160.585947,0.0002383,2]
[328103066,1716863447564,-160.585947,0.0002383,2]
[328103068,1716863447573,-1187.600206,0.0002383,2]
[328103070,1716863447582,-1187.600206,0.0002383,2]
[328103072,1716863447593,-1187.600206,0.0002383,2]
[328103074,1716863447602,-1187.600206,0.0002383,2]
[328103076,1716863447611,-1187.600206,0.0002383,2]
[328103078,1716863447621,-1187.600206,0.0002383,2]
[328103080,1716863447631,-332.898765,0.0002383,2]
[328103082,1716863447640,-332.898765,0.0002383,2]
[328103084,1716863447649,-332.898765,0.0002383,2]
[328103086,1716863447660,-332.898765,0.0002383,2]
[328103088,1716863447669,-332.898765,0.0002383,2]
[328103090,1716863447679,-332.898765,0.0002383,2]
[328103092,1716863447689,-2179.171276,0.0002383,2]
[328103094,1716863447698,-2179.171276,0.0002383,2]
[328103096,1716863447708,-2179.171276,0.0002383,2]
[328103098,1716863447717,-2179.171276,0.0002383,2]
[328103100,1716863447728,-2179.171276,0.0002383,2]
[328103102,1716863447737,-2179.171276,0.0002383,2]
[328103104,1716863447747,-291.259684,0.0002383,2]
[328103106,1716863447756,-291.259684,0.0002383,2]
[328103108,1716863447765,-291.259684,0.0002383,2]
[328103110,1716863447774,-291.259684,0.0002383,2]
[328103112,1716863447783,-291.259684,0.0002383,2]
[328103114,1716863447792,-291.259684,0.0002383,2]
[328103116,1716863447801,-151.0,0.0002383,2]
[328103118,1716863447810,-151.0,0.0002383,2]
[328103120,1716863447819,-151.0,0.0002383,2]
[328103122,1716863447828,-151.0,0.0002383,2]
[328103124,1716863447839,-151.0,0.0002383,2]
[328103126,1716863447847,-151.0,0.0002383,2]
[328103128,1716863447856,-151.0,0.0002383,2]
[328103130,1716863447865,-151.0,0.0002383,2]
[328103132,1716863447874,-365.333989,0.0002383,2]
[328103134,1716863447883,-365.333989,0.0002383,2]
[328103135,1716863447892,-365.333989,0.0002383,2]
[328103137,1716863447902,-365.333989,0.0002383,2]
[328103139,1716863447911,-365.333989,0.0002383,2]
[328103141,1716863447920,-365.333989,0.0002383,2]
[328103144,1716863447930,-365.333989,0.0002383,2]
[328103145,1716863447939,-365.333989,0.0002383,2]
[328103147,1716863447950,-241.551959,0.0002383,2]
[328103149,1716863447960,-241.551959,0.0002383,2]
[328103151,1716863447969,-241.551959,0.0002383,2]
[328103153,1716863447984,-241.551959,0.0002383,2]
[328103156,1716863447993,-241.551959,0.0002383,2]
[328103157,1716863448002,-241.551959,0.0002383,2]
[328103160,1716863448012,-241.551959,0.0002383,2]
[328103162,1716863448023,-241.551959,0.0002383,2]
[328103163,1716863448032,-172.20939512,0.00024,2]
[328103165,1716863448041,-303.2,0.00024078,5]
[328103167,1716863448050,-300.1306448,0.000242,2]
[328103170,1716863448062,-720.412501,0.00024384,2]
[328103171,1716863448071,-152.71699,0.00024384,2]
[328103173,1716863448080,-200.0,0.00024658,15]
[328103175,1716863448091,-303.2,0.0002466,5]
[328103177,1716863448100,-291.259684,0.00024661,2]
[328103179,1716863448109,-291.259684,0.00024661,2]
[328103181,1716863448119,-3979.64038445,0.00025,2]
[328103183,1716863448128,-368.921306,0.00025,2]
[328103185,1716863448137,-368.921306,0.00025,2]
[328103187,1716863448148,-368.921306,0.00025,2]
[328103190,1716863448159,-368.921306,0.00025,2]
[328103191,1716863448169,-151.0,0.00025,2]
[328103193,1716863448178,-151.0,0.00025,2]
[328103196,1716863448188,-547.321324,0.00025,2]
[328103198,1716863448197,-547.321324,0.00025,2]
[328103199,1716863448206,-547.321324,0.00025,2]
[328103201,1716863448215,-547.321324,0.00025,2]
[328103203,1716863448224,-151.0,0.00025,2]
[328103205,1716863448233,-151.0,0.00025,2]
[328103207,1716863448243,-160.585947,0.00025,2]
[328103209,1716863448251,-160.585947,0.00025,2]
[328103211,1716863448261,-160.585947,0.00025,2]
[328103213,1716863448270,-160.585947,0.00025,2]
[328103215,1716863448279,-160.585947,0.00025,2]
[328103217,1716863448288,-160.585942,0.00025,2]
[328103219,1716863448297,-1187.600206,0.00025,2]
[328103221,1716863448306,-1187.600206,0.00025,2]
[328103223,1716863448315,-1187.600206,0.00025,2]
[328103225,1716863448324,-1187.600206,0.00025,2]
[328103227,1716863448333,-1187.600206,0.00025,2]
[328103229,1716863448343,-1187.600203,0.00025,2]
[328103231,1716863448353,-332.898765,0.00025,2]
[328103233,1716863448362,-332.898765,0.00025,2]
[328103235,1716863448371,-332.898765,0.00025,2]
[328103237,1716863448380,-332.898765,0.00025,2]
[328103239,1716863448389,-332.898765,0.00025,2]
[328103241,1716863448398,-332.898765,0.00025,2]
[328103243,1716863448407,-2179.171276,0.00025,2]
[328103245,1716863448416,-2179.171276,0.00025,2]
[328103247,1716863448425,-2179.171276,0.00025,2]
[328103249,1716863448434,-2179.171276,0.00025,2]
[328103251,1716863448443,-2179.171276,0.00025,2]
[328103253,1716863448452,-2179.171284,0.00025,2]
[328103255,1716863448461,-291.259684,0.00025,2]
[328103257,1716863448470,-291.259684,0.00025,2]
[328103259,1716863448479,-291.259684,0.00025,2]
[328103261,1716863448488,-291.259684,0.00025,2]
[328103263,1716863448497,-151.0,0.00025,2]
[328103265,1716863448506,-151.0,0.00025,2]
[328103267,1716863448515,-188.924664,0.00025,2]
[328103269,1716863448524,-365.333989,0.00025,2]
[328103271,1716863448534,-365.333989,0.00025,2]
[328103273,1716863448543,-365.333989,0.00025,2]
[328103275,1716863448552,-365.333989,0.00025,2]
[328103277,1716863448562,-241.551959,0.00025,2]
[328103279,1716863448571,-241.551959,0.00025,2]
[328103281,1716863448580,-241.551959,0.00025,2]
[328103283,1716863448590,-241.551951,0.00025,2]
[328103285,1716863448599,-303.2,0.00025242,5]
[328103287,1716863448608,-303.2,0.00025824,5]
[328103289,1716863448617,-157.985878,0.00025979,2]
[328103291,1716863448625,-2000.0,0.00025999,5]